{"text_format":"1","workbook":"xlsx","n_sheets":2,"sheets":["Cover page","Scoresheet"],"not_rendered":{"charts":0,"images":1,"macros":1,"external_links":0,"defined_names":4,"comments":0,"pivot_tables":0},"unopened":[],"bounds":{"document_bytes":16777216,"sheet_cells":100000,"rows_first":2000,"rows_last":500,"rows_between":2000,"halvings":0,"cell_chars":16384,"cell_head_chars":4096},"cells_cut":0,"cells_raw":0,"read":"whole","date_system":"1900"}

{"sheet":"Cover page","index":0,"n_rows":24,"n_cols":24,"rows_kept":24,"cut":false,"hidden":false,"merged":[[22,4,23,5],[14,1,20,9],[15,0,20,0],[1,6,2,7],[1,8,2,8],[23,0,23,1]]}
["FIS TD Practical Assessment (FS/SB/FK)"]
["Candidate Name",null,null,"Score",{"$f":"Scoresheet!$N$1","v":0},null,"Mandatory items failed",null,{"$f":"Scoresheet!R1","v":0}]
["Candidate Nation",null,null,null,{"$f":"Scoresheet!$N$2","v":""}]
["Assessor Name"]
["Assessor Nation"]
["Dates of assessment:"]
["Start"]
["End"]
["Place of Assessment (Resort, NAT)"]
["Competition Category (WC, COC etc)",null,null,null,null,null,null,null,null,null,null,null,null,null,null,null,"Events selected:"]
[null,null,"AE","MO","SX","SBX","PAR","HP","SS","BA",null,null,null,null,null,null,"AE","MO","SX","SBX","PAR","HP","SS","BA"]
["Event(s) assessed",null,null,null,null,null,null,null,null,null,null,null,null,null,null,null,false,false,false,false,false,false,false,false]
["Event Codex"]
[null,null,null,null,null,null,null,null,null,null,null,null,null,null,null,null,"Judged sports selected?",null,null,{"$f":"OR(Q12,R12,V12,W12,X12)","v":false}]
["Examiner's assessment",null,null,null,null,null,null,null,null,null,null,null,null,null,null,null,"Timed sports selected?",null,null,{"$f":"OR(S12,T12,U12)","v":false}]
["Please give your overall assessment of the Candidate's performance, stating clearly whether you consider them fitted to be awarded a TD Licence."]
[]
[]
[]
[]
[]
[]
["Has the Candidate passed this Assessment?",null,"Yes","No",{"$f":"IF(L24=1,\"Pass\",IF(L24=2,\"Fail\",\"\"))","v":""}]
["Base your answer not just on the score, but on your overall assessment of the Candidate's readiness to operate as a TD."]

{"sheet":"Scoresheet","index":1,"n_rows":58,"n_cols":32,"rows_kept":58,"cut":false,"hidden":false,"merged":[]}
[null,null,"Not assessed","Inadequate","OK","Good","Excellent",null,"Remarks","Optbutton values","Score",null,"Total",{"$f":"SUM(K:K)","v":0},null,null,"Failed Mandatories",{"$f":"COUNTIF(O:O,TRUE)","v":0},null,null,null,null,null,null,null,null,null,"Default settings"]
[null,null,"↓","0 Points","1 Point","2 Points","3 Points",null,null,null,null,null,"Average Score",{"$f":"IF(COUNT(K:K)=0,\"\",N1/(3*COUNT(K:K)))","v":""},null,null,"Mandatory?","↓",null,null,null,null,null,null,null,null,null,"Judged","Timed","Special","Always","Result"]
["1. Preparation Work",null,null,{"$f":"IF(NOT(AND('Cover page'!T14,'Cover page'!T15)),\"Warning!  Go to Cover Page and select the Events to be assessed before filling in this Scoresheet!\",\"\")","v":"Warning!  Go to Cover Page and select the Events to be assessed before filling in this Scoresheet!"},null,null,null,null,null,null,null,null,null,null,null,null,null,null,null,null,null,null,null,null,null,null,{"$f":"AF3","v":0}]
["Contact with the Organiser",null,null,null,null,null,null,null,null,null,{"$f":"IF(L4,\"\",IF(J4=\"\",\"\",J4-1))","v":""},false,null,null,{"$f":"AND(AA4,J4=1)","v":false},null,null,null,null,null,null,null,null,null,null,null,{"$f":"AF4","v":false},null,null,null,false,{"$f":"OR(AB4,AC4,AD4,AE4)","v":false}]
["Arrives at the resort at the correct time & place",null,null,null,null,null,null,null,null,null,{"$f":"IF(L5,\"\",IF(J5=\"\",\"\",J5-1))","v":""},false,null,null,{"$f":"AND(S5,J5=1)","v":false},null,null,null,null,null,null,null,null,null,null,null,true,true,null,null,true,{"$f":"OR(AB5:AE5)","v":true}]
["Has all relevant documents readily available",null,null,null,null,null,null,null,null,null,"",false,null,null,null,null,null,null,null,null,null,null,null,null,null,null,true,true,null,null,true,{"$f":"OR(AB6:AE6)","v":true}]
["Has reviewed the homologation files before arrival (PAR/MO/AE)",null,null,null,null,null,null,null,null,null,"",false,null,null,null,null,null,null,null,null,null,null,null,null,null,null,false,null,null,{"$f":"OR('Cover page'!$Q$12,'Cover page'!$R$12,'Cover page'!$U$12)","v":false},false,false]
["2. Control on the Course /Slope",null,null,null,null,null,null,null,null,null,null,null,null,null,null,null,null,null,null,null,null,null,null,null,null,null,0]
["Candidate’s Organisation Skills",null,null,null,null,null,null,null,null,null,"",false,null,null,null,null,null,null,null,null,null,null,null,null,null,null,true,true,null,null,true,true]
["Candidate’s Skiing/Snowboard Skills",null,null,null,null,null,null,null,null,null,"",false,null,null,{"$f":"J10=1","v":false},null,null,null,null,null,null,null,null,null,null,null,true,true,null,null,true,true]
["Candidate meets with appropriate OC Personnel.",null,null,null,null,null,null,null,null,null,"",false,null,null,null,null,null,null,null,null,null,null,null,null,null,null,false,false,null,null,false,false]
["Candidate reviews Medical Plan with Chief of Medical.",null,null,null,null,null,null,null,null,null,{"$f":"IF(L12,\"\",IF(J12=\"\",\"\",J12-1))","v":""},false,null,null,null,null,null,null,null,null,null,null,null,null,null,null,true,true,null,null,true,true]
["Reviews course preparations / planning",null,null,null,null,null,null,null,null,null,"",null,null,null,{"$f":"J13=1","v":false},null,null,null,null,null,null,null,null,null,null,null,true,true,null,null,true,true]
["Review of safety installations vs/safety report",null,null,null,null,null,null,null,null,null,"",null,null,null,null,null,null,null,null,null,null,null,null,null,null,null,true,true,null,null,true,true]
["Review of timing installations/homologated equipment",null,null,null,null,null,null,null,null,null,"",null,null,null,null,null,null,null,null,null,null,null,null,null,null,null,false,null,{"$f":"'Cover page'!$T$15","v":false},null,false,false]
["Reviews Judges’ Stand and confirms all with HJ (judged Events only)",null,null,null,null,null,null,null,null,null,"",false,null,null,null,null,null,null,null,null,null,null,null,null,null,null,false,{"$f":"'Cover page'!$T$14","v":false},null,null,false,false]
["Verifies technical data of courses/slopes and confirms course complies with the specifications",null,null,null,null,null,null,null,null,null,"",false,null,null,null,null,null,null,null,null,null,null,null,null,null,null,true,true,null,null,true,true]
["Checks availability and supervises use of colour/pine boughs etc to improve visibility",null,null,null,null,null,null,null,null,null,"",false,null,null,null,null,null,null,null,null,null,null,null,null,null,null,false,null,null,null,false,false]
["3. Meeting with the Chief of Competition",null,null,null,null,null,null,null,null,null,null,null,null,null,null,null,null,null,null,null,null,null,null,null,null,null,0]
["Verify Insurance Certification",null,null,null,null,null,null,null,null,null,"",false,null,null,null,null,null,null,null,null,null,null,null,null,null,null,true,true,null,null,true,true]
["Review radio protocols and planning",null,null,null,null,null,null,null,null,null,"",false,null,null,null,null,null,null,null,null,null,null,null,null,null,null,false,null,null,null,false,false]
["Review timing and result preparation plans",null,null,null,null,null,null,null,null,null,"",false,null,null,null,null,null,null,null,null,null,null,null,null,null,null,false,null,null,null,false,false]
["Review TC Meeting plans",null,null,null,null,null,null,null,null,null,"",false,null,null,null,null,null,null,null,null,null,null,null,null,null,null,true,true,null,null,true,true]
["Review Weather forecast with OC",null,null,null,null,null,null,null,null,null,"",false,null,null,null,null,null,null,null,null,null,null,null,null,null,null,true,true,null,null,true,true]
["Review & Agree Agenda for TCM",null,null,null,null,null,null,null,null,null,"",false,null,null,null,null,null,null,null,null,null,null,null,null,null,null,false,null,null,null,false,false]
["Review Safety Plan and discuss/approve with Jury",null,null,null,null,null,null,null,null,null,"",false,null,null,{"$f":"J26=1","v":false},null,null,null,null,null,null,null,null,null,null,null,true,true,null,null,false,true]
["4. The Programme",null,null,null,null,null,null,null,null,null,null,null,null,null,null,null,null,null,null,null,null,null,null,null,null,null,0]
["Discuss contingency plans",null,null,null,null,null,null,null,null,null,"",null,null,null,null,null,null,null,null,null,null,null,null,null,null,null,false,null,null,null,false,false]
["Plan correctly with a program that is realistic",null,null,null,null,null,null,null,null,null,"",null,null,null,{"$f":"J29=1","v":false},null,null,null,null,null,null,null,null,null,null,null,true,true,null,null,true,true]
["Review quantity & quality of forerunners",null,null,null,null,null,null,null,null,null,"",null,null,null,null,null,null,null,null,null,null,null,null,null,null,null,false,null,null,null,false,false]
["Review start intervals & are they correct for the event",null,null,null,null,null,null,null,null,null,"",null,null,null,null,null,null,null,null,null,null,null,null,null,null,null,false,null,null,null,false,false]
["5. The Team Captains’ Meeting",null,null,null,null,null,null,null,null,null,null,null,null,null,null,null,null,null,null,null,null,null,null,null,null,null,0]
["Chooses an acceptable Referee (Cross)",null,null,null,null,null,null,null,null,null,"",null,null,null,null,null,null,null,null,null,null,null,null,null,null,null,false,null,null,{"$f":"OR('Cover page'!$S$12)","v":false},false,false]
["Checks Board, Quotas, special rules",null,null,null,null,null,null,null,null,null,"",null,null,null,{"$f":"J34=1","v":false},null,null,null,null,null,null,null,null,null,null,null,true,true,null,null,true,true]
["Oversees the Draw",null,null,null,null,null,null,null,null,null,"",null,null,null,null,null,null,null,null,null,null,null,null,null,null,null,{"$f":"AF35","v":false},null,null,null,false,false]
["Checks the Entries",null,null,null,null,null,null,null,null,null,"",null,null,null,null,null,null,null,null,null,null,null,null,null,null,null,true,null,null,null,true,true]
["Reviews important agenda topics re safety, medical, etc",null,null,null,null,null,null,null,null,null,"",null,null,null,null,null,null,null,null,null,null,null,null,null,null,null,false,null,null,null,false,false]
["6. Official Training",null,null,null,null,null,null,null,null,null,null,null,null,null,null,null,null,null,null,null,null,null,null,null,null,null,0]
["Leads Jury meeting to approve the course",null,null,null,null,null,null,null,null,null,"",null,null,null,{"$f":"J39=1","v":false},null,null,null,null,null,null,null,null,null,null,null,true,true,null,null,true,true]
["Verifies Medical in place before opening Training (every Official Training and Competition session)",null,null,null,null,null,null,null,null,null,"",null,null,null,false,null,null,null,null,null,null,null,null,null,null,null,true,true,null,null,true,true]
["Checks competitors’ bibs correctly worn",null,null,null,null,null,null,null,null,null,"",null,null,null,false,null,null,null,null,null,null,null,null,null,null,null,true,true,null,null,true,true]
["Controls course inspection",null,null,null,null,null,null,null,null,null,"",null,null,null,false,null,null,null,null,null,null,null,null,null,null,null,true,true,null,null,true,true]
["Liaises with Connection Coach",null,null,null,null,null,null,null,null,null,"",null,null,null,false,null,null,null,null,null,null,null,null,null,null,null,true,true,null,null,true,true]
["Controls Training",null,null,null,null,null,null,null,null,null,"",null,null,null,false,null,null,null,null,null,null,null,null,null,null,null,true,true,null,null,true,true]
["7. Competition Day",null,null,null,null,null,null,null,null,null,null,null,null,null,null,null,null,null,null,null,null,null,null,null,null,null,0]
["Properly organises the Jury/Jury positions and radio protocol",null,null,null,null,null,null,null,null,null,"",null,null,null,null,null,null,null,null,null,null,null,null,null,null,null,false,null,null,null,false,false]
["Reviews timing installations and confirms all with Chief of Timing",null,null,null,null,null,null,null,null,null,"",null,null,null,null,null,null,null,null,null,null,null,null,null,null,null,false,null,null,null,false,false]
["Leads the Jury before the event",null,null,null,null,null,null,null,null,null,"",null,null,null,{"$f":"J48=1","v":false},null,null,null,null,null,null,null,null,null,null,null,true,true,null,null,true,true]
["Gives all necessary guidance on interpretation of  FIS Rules",null,null,null,null,null,null,null,null,null,"",null,null,null,null,null,null,null,null,null,null,null,null,null,null,null,false,null,null,null,false,false]
["Properly reacts to on hill issues (Reruns, Protests, etc.)",null,null,null,null,null,null,null,null,null,"",null,null,null,null,null,null,null,null,null,null,null,null,null,null,null,false,null,null,null,false,false]
["Assist and review DSQ's along with Referee",null,null,null,null,null,null,null,null,null,"",null,null,null,null,null,null,null,null,null,null,null,null,null,null,null,false,null,null,{"$f":"OR('Cover page'!$S$12,'Cover page'!S12:U12)","v":false},false,false]
["8. After the Competition",null,null,null,null,null,null,null,null,null,null,null,null,null,null,null,null,null,null,null,null,null,null,null,null,null,0]
["Checks the Points Scales calculation",null,null,null,null,null,null,null,null,null,"",null,null,null,null,null,null,null,null,null,null,null,null,null,null,null,false,null,null,null,false,false]
["Checks the Results List (Heading, DSQ, DNS, DNF)",null,null,null,null,null,null,null,null,null,"",null,null,null,null,null,null,null,null,null,null,null,null,null,null,null,false,null,null,null,false,false]
["Checks the Timing Report with the Chief of Timing",null,null,null,null,null,null,null,null,null,"",null,null,null,null,null,null,null,null,null,null,null,null,null,null,null,false,null,{"$f":"'Cover page'!$T$15","v":false},null,false,false]
["Completes the TD Report and makes comments",null,null,null,null,null,null,null,null,null,"",null,null,null,{"$f":"J56=1","v":false},null,null,null,null,null,null,null,null,null,null,null,true,true,null,null,true,true]
["Checks the race result and timing report transmission",null,null,null,null,null,null,null,null,null,"",null,null,null,null,null,null,null,null,null,null,null,null,null,null,null,false,null,null,null,false,false]
["Checks that online results match with official results",null,null,null,null,null,null,null,null,null,"",false,null,null,null,null,null,null,null,null,null,null,null,null,null,null,false,null,null,null,false,false]